fUST/lending_fUST_20241224
["ID","MTS","AMOUNT","RATE_DAILY","PERIOD"]
[346533004,1735050353822,-500.0,0.00013694,2]
[346533005,1735050353847,-500.0,0.00013694,2]
[346533006,1735050353870,-500.0,0.00013694,2]
[346533007,1735050353895,-500.0,0.00013694,2]
[346533008,1735050353919,-166.59633117,0.00013694,2]
[346533009,1735050353942,-560.25889533,0.00013694,2]
[346533010,1735050353965,-500.0,0.00013694,2]
[346533011,1735050353989,-500.0,0.00013694,2]
[346533012,1735050354014,-500.0,0.00013694,2]
[346533013,1735050354038,-500.0,0.00013694,2]
[346533014,1735050354061,-500.0,0.00013694,2]
[346533015,1735050354084,-500.0,0.00013694,2]
[346533016,1735050354109,-500.0,0.00013694,2]
[346533017,1735050354132,-500.0,0.00013694,2]
[346533018,1735050354155,-500.0,0.00013694,2]
[346533019,1735050354178,-500.0,0.00013694,2]
[346533020,1735050354203,-500.0,0.00013694,2]
[346533021,1735050354238,-500.0,0.00013694,2]
[346533022,1735050354278,-500.0,0.00013694,2]
[346533023,1735050354314,-500.0,0.00013694,2]
[346533024,1735050354347,-500.0,0.00013694,2]
[346533025,1735050354380,-500.0,0.00013694,2]
[346533026,1735050354410,-500.0,0.00013694,2]
[346533027,1735050354440,-290.22461629,0.00013697,2]
[346533028,1735050354468,-8223.78947244,0.00013698,2]
[346533029,1735050354495,-500.0,0.00013698,2]
[346533030,1735050354527,-500.0,0.00013698,2]
[346533031,1735050354557,-500.0,0.00013698,2]
[346533032,1735050354587,-500.0,0.00013698,2]
[346533033,1735050354612,-500.0,0.00013698,2]
[346533034,1735050354643,-501.90071929,0.00013698,2]
[346533035,1735050354672,-500.0,0.00013698,2]
[346533036,1735050354701,-500.0,0.00013698,2]
[346533037,1735050354729,-500.0,0.00013698,2]
[346533038,1735050354757,-500.0,0.00013698,2]
[346533039,1735050354785,-500.0,0.00013698,2]
[346533040,1735050354815,-500.0,0.00013698,2]
[346533041,1735050354844,-505.10984882,0.00013698,2]
[346533042,1735050354871,-500.0,0.00013698,2]
[346533043,1735050354898,-500.0,0.00013698,2]
[346533044,1735050354925,-500.0,0.00013698,2]
[346533045,1735050354951,-500.0,0.00013698,2]
[346533046,1735050354978,-500.0,0.00013698,2]
[346533047,1735050355007,-500.0,0.00013698,2]
[346533048,1735050355033,-500.0,0.00013698,2]
[346533049,1735050355059,-500.0,0.00013698,2]
[346533050,1735050355087,-500.0,0.00013698,2]
[346533051,1735050355114,-502.4733482,0.00013698,2]
[346533052,1735050355142,-500.0,0.00013698,2]
[346533053,1735050355168,-500.0,0.00013698,2]
[346533054,1735050355195,-500.0,0.00013698,2]
[346533055,1735050355222,-500.0,0.00013698,2]
[346533056,1735050355252,-500.0,0.00013698,2]
[346533057,1735050355278,-513.46,0.00013698,2]
[346533058,1735050355304,-500.49318762,0.00013698,2]
[346533059,1735050355331,-500.0,0.00013698,2]
[346533060,1735050355358,-500.0,0.00013698,2]
[346533061,1735050355385,-500.0,0.00013698,2]
[346533062,1735050355412,-500.0,0.00013698,2]
[346533063,1735050355438,-610.49439258,0.00013698,2]
[346533064,1735050355464,-500.0,0.00013698,2]
[346533065,1735050355491,-500.0,0.00013698,2]
[346533066,1735050355519,-500.0,0.00013698,2]
[346533067,1735050355547,-485.70053789,0.00013698,2]
[346533068,1735050355575,-500.0,0.00013698,2]
[346533069,1735050355602,-509.66346961,0.00013698,2]
[346533070,1735050355629,-500.0,0.00013698,2]
[346533071,1735050355655,-500.0,0.00013698,2]
[346533072,1735050355682,-500.0,0.00013698,2]
[346533073,1735050355708,-548.6,0.00013698,2]
[346533074,1735050355734,-500.0,0.00013698,2]
[346533075,1735050355760,-500.0,0.00013698,2]
[346533076,1735050355781,-500.0,0.00013698,2]
[346533077,1735050356007,-500.0,0.00013698,2]
[346533078,1735050356045,-498.61707561,0.00013698,2]
[346533079,1735050356066,-497.4566339,0.00013698,2]
[346533080,1735050356091,-500.0,0.00013698,2]
[346533081,1735050356111,-500.0,0.00013698,2]
[346533082,1735050356133,-500.0,0.00013698,2]
[346533083,1735050356154,-500.0,0.00013698,2]
[346533084,1735050356175,-152.69044545,0.00013698,2]
[346533085,1735050356196,-500.0,0.00013698,2]
[346533086,1735050356217,-500.0,0.00013698,2]
[346533087,1735050356238,-500.0,0.00013698,2]
[346533088,1735050356265,-500.0,0.00013698,2]
[346533089,1735050356287,-500.0,0.00013698,2]
[346533090,1735050356308,-449.40405833,0.00013698,2]
[346533091,1735050356330,-500.0,0.00013698,2]
[346533092,1735050356352,-500.0,0.00013698,2]
[346533093,1735050356373,-383.99564397,0.00013698,2]
[346533094,1735050356395,-500.0,0.00013698,2]
[346533095,1735050356418,-500.0,0.00013698,2]
[346533096,1735050356440,-531.21,0.00013698,2]
[346533097,1735050356460,-526.91658418,0.00013698,2]
[346533098,1735050356482,-693.64,0.00013698,2]
[346533099,1735050356505,-716.32,0.00013698,2]
[346533100,1735050356528,-504.65551966,0.00013698,2]
[346533101,1735050356550,-500.0,0.00013698,2]
[346533102,1735050356572,-503.52497012,0.00013698,2]
[346533103,1735050356594,-403.36272223,0.00013698,2]
[346533104,1735050356616,-1878.52,0.00013698,2]
[346533105,1735050356639,-500.0,0.00013698,2]
[346533106,1735050356660,-500.0,0.00013698,2]
[346533107,1735050356682,-500.0,0.00013698,2]
[346533108,1735050356704,-500.0,0.00013698,2]
[346533109,1735050356726,-502.98833948,0.00013698,2]
[346533110,1735050356749,-500.0,0.00013698,2]
[346533111,1735050356772,-1048.5,0.00013698,2]
[346533112,1735050356794,-500.0,0.00013698,2]
[346533113,1735050356817,-500.0,0.00013698,2]
[346533114,1735050356839,-500.0,0.00013698,2]
[346533115,1735050356861,-500.0,0.00013698,2]
[346533116,1735050356884,-500.0,0.00013698,2]
[346533117,1735050356907,-500.0,0.00013698,2]
[346533118,1735050356928,-500.0,0.00013698,2]
[346533119,1735050356949,-500.0,0.00013698,2]
[346533120,1735050356970,-500.0,0.00013698,2]
[346533121,1735050356992,-500.0,0.00013698,2]
[346533122,1735050357017,-500.0,0.00013698,2]
[346533123,1735050357040,-500.0,0.00013698,2]
[346533124,1735050357062,-500.0,0.00013698,2]
[346533125,1735050357087,-176.14584029,0.00013698,2]
[346533127,1735050426097,-1200.0,0.00013557,2]
[346533128,1735050426122,-1337.72616984,0.00013598,2]
[346533129,1735050426145,-792.02574231,0.00013598,2]
[346533130,1735050426167,-1337.72616984,0.00013667,2]
[346533132,1735050426190,-1200.0,0.00013694,2]
[346533134,1735050426212,-300.0,0.00013696,2]
[346533135,1735050426234,-300.0,0.00013696,2]
[346533136,1735050426256,-405.00059124,0.00013697,2]
[346533137,1735050426284,-500.0,0.00013697,2]
[346533138,1735050426310,-500.0,0.00013697,2]
[346533139,1735050426333,-500.0,0.00013697,2]
[346533140,1735050426359,-340.02876615,0.00013697,2]
[346533141,1735050426381,-416.65963312,0.00013697,2]
[346533142,1735050426402,-984.71415971,0.00013698,2]
[346533143,1735050426423,-383.23318826,0.00013698,2]
[346533144,1735050426445,-500.0,0.00013698,2]
[346533145,1735050426466,-500.0,0.00013698,2]
[346533146,1735050426487,-500.71279426,0.00013698,2]
[346533147,1735050426508,-500.0,0.00013698,2]
[346533148,1735050426528,-503.84022955,0.00013698,2]
[346533149,1735050426551,-500.0,0.00013698,2]
[346533150,1735050426572,-2178.15293248,0.00013698,5]
[346533151,1735050426593,-613.48236092,0.00013698,2]
[346533152,1735050426615,-500.0,0.00013698,2]
[346533153,1735050426637,-500.0,0.00013698,2]
[346533154,1735050426659,-500.0,0.00013698,2]
[346533155,1735050426680,-500.0,0.00013698,2]
[346533156,1735050426702,-500.0,0.00013698,2]
[346533157,1735050426723,-500.0,0.00013698,2]
[346533158,1735050426745,-500.0,0.00013698,2]
[346533159,1735050426767,-500.0,0.00013698,2]
[346533160,1735050426788,-500.0,0.00013698,2]
[346533161,1735050426814,-228.23623091,0.00013698,2]
[346533162,1735050426835,-500.0,0.00013698,2]
[346533163,1735050426856,-500.0,0.00013698,2]
[346533164,1735050426879,-549.49292055,0.00013698,2]
[346533165,1735050426900,-1103.09,0.00013698,2]
[346533166,1735050426921,-500.0,0.00013698,2]
[346533167,1735050426942,-500.0,0.00013698,2]
[346533168,1735050426964,-2116.69,0.00013698,2]
[346533169,1735050426984,-500.0,0.00013698,2]
[346533170,1735050427005,-211.64130333,0.00013698,2]
[346533171,1735050427026,-500.0,0.00013698,2]
[346533172,1735050427048,-500.0,0.00013698,2]
[346533173,1735050427069,-500.0,0.00013698,2]
[346533174,1735050427091,-500.0,0.00013698,2]
[346533175,1735050427115,-604.87718765,0.00013698,2]
[346533176,1735050427138,-500.0,0.00013698,2]
[346533177,1735050427160,-530.51,0.00013698,2]
[346533178,1735050427182,-956.51,0.00013698,2]
[346533179,1735050427204,-1039.45,0.00013698,2]
[346533180,1735050427226,-500.0,0.00013698,2]
[346533181,1735050427247,-500.0,0.00013698,2]
[346533182,1735050427271,-500.0,0.00013698,2]
[346533183,1735050427293,-500.0,0.00013698,2]
[346533184,1735050427317,-289.46222015,0.00013698,2]
[346533185,1735050427338,-500.0,0.00013698,2]
[346533186,1735050427362,-508.21318147,0.00013698,2]
[346533187,1735050427383,-500.0,0.00013698,2]
[346533188,1735050427406,-500.0,0.00013698,2]
[346533189,1735050427428,-500.0,0.00013698,2]
[346533190,1735050427451,-500.0,0.00013698,2]
[346533191,1735050427474,-500.0,0.00013698,2]
[346533192,1735050427496,-500.0,0.00013698,2]
[346533193,1735050427518,-500.0,0.00013698,2]
[346533194,1735050427539,-500.0,0.00013698,2]
[346533195,1735050427564,-500.0,0.00013698,2]
[346533196,1735050427587,-501.3626067,0.00013698,2]
[346533197,1735050427610,-847.69,0.00013698,2]
[346533198,1735050427635,-500.0,0.00013698,2]
[346533199,1735050427657,-500.0,0.00013698,2]
[346533200,1735050427680,-1143.02,0.00013698,2]
[346533201,1735050427702,-500.0,0.00013698,2]
[346533202,1735050427725,-500.0,0.00013698,2]
[346533203,1735050427747,-1907.26,0.00013698,2]
[346533204,1735050427769,-500.0,0.00013698,2]
[346533205,1735050427791,-500.0,0.00013698,2]
[346533206,1735050427818,-500.0,0.00013698,2]
[346533207,1735050427840,-500.0,0.00013698,2]
[346533208,1735050427863,-500.0,0.00013698,2]
[346533209,1735050427885,-500.0,0.00013698,2]
[346533210,1735050427910,-500.0,0.00013698,2]
[346533211,1735050427932,-501.72158891,0.00013698,2]
[346533212,1735050427955,-1084.08,0.00013698,2]
[346533213,1735050427981,-500.0,0.00013698,2]
[346533214,1735050428004,-500.0,0.00013698,2]
[346533215,1735050428026,-500.0,0.00013698,2]
[346533216,1735050428050,-500.0,0.00013698,2]
[346533217,1735050428072,-500.0,0.00013698,2]
[346533218,1735050428096,-1076.55,0.00013698,2]
[346533219,1735050428120,-500.0,0.00013698,2]
[346533220,1735050428143,-500.0,0.00013698,2]
[346533221,1735050428165,-500.0,0.00013698,2]
[346533222,1735050428188,-500.0,0.00013698,2]
[346533223,1735050428211,-500.0,0.00013698,2]
[346533224,1735050428233,-500.0,0.00013698,2]
[346533225,1735050428255,-500.0,0.00013698,2]
[346533226,1735050428282,-500.0,0.00013698,2]
[346533227,1735050428310,-500.0,0.00013698,2]
[346533228,1735050428333,-1183.49,0.00013698,2]
[346533229,1735050428362,-1213.26,0.00013698,2]
[346533230,1735050428503,-500.0,0.00013698,2]
[346533231,1735050428563,-500.0,0.00013698,2]
[346533232,1735050428587,-903.4,0.00013698,2]
[346533233,1735050428610,-500.0,0.00013698,2]
[346533234,1735050428632,-500.0,0.00013698,2]
[346533235,1735050428656,-500.0,0.00013698,2]
[346533236,1735050428677,-500.0,0.00013698,2]
[346533237,1735050428699,-503.17441349,0.00013698,2]
[346533238,1735050428721,-500.0,0.00013698,2]
[346533239,1735050428743,-682.5,0.00013698,2]
[346533240,1735050428764,-500.0,0.00013698,2]
[346533241,1735050428786,-500.0,0.00013698,2]
[346533242,1735050428810,-500.0,0.00013698,2]
[346533243,1735050428833,-500.0,0.00013698,2]
[346533244,1735050428856,-500.0,0.00013698,2]
[346533245,1735050428880,-1262.65,0.00013698,2]
[346533246,1735050428902,-500.0,0.00013698,2]
[346533247,1735050428924,-500.0,0.00013698,2]
[346533248,1735050428945,-500.0,0.00013698,2]
[346533249,1735050428965,-500.0,0.00013698,2]
[346533250,1735050428987,-500.0,0.00013698,2]
[346533251,1735050429008,-501.76142529,0.00013698,2]
[346533252,1735050429030,-505.26077932,0.00013698,2]
[346533253,1735050429053,-1110.26,0.00013698,2]
[346533254,1735050429075,-500.0,0.00013698,2]
[346533255,1735050429097,-1000.0,0.00013698,2]
[346533256,1735050429119,-500.0,0.00013698,2]
[346533257,1735050429140,-500.0,0.00013698,2]
[346533258,1735050429160,-500.0,0.00013698,2]
[346533259,1735050429181,-500.0,0.00013698,2]
[346533260,1735050429203,-500.0,0.00013698,2]
[346533261,1735050429224,-500.0,0.00013698,2]
[346533262,1735050429245,-500.0,0.00013698,2]
[346533263,1735050429270,-1113.31,0.00013698,2]
[346533264,1735050429293,-500.0,0.00013698,2]
[346533265,1735050429318,-500.0,0.00013698,2]
[346533266,1735050429342,-503.04840298,0.00013698,2]
[346533267,1735050429364,-500.0,0.00013698,2]
[346533268,1735050429386,-500.0,0.00013698,2]
[346533269,1735050429407,-500.0,0.00013698,2]
[346533270,1735050429429,-500.0,0.00013698,2]
[346533271,1735050429450,-500.0,0.00013698,2]
[346533272,1735050429472,-500.0,0.00013698,2]
[346533273,1735050429495,-500.0,0.00013698,2]
[346533274,1735050429516,-500.0,0.00013698,2]
[346533275,1735050429537,-500.0,0.00013698,2]
[346533276,1735050429560,-500.0,0.00013698,2]
[346533277,1735050429585,-500.0,0.00013698,2]
[346533278,1735050429608,-500.0,0.00013698,2]
[346533279,1735050429629,-500.0,0.00013698,2]
[346533280,1735050429651,-500.0,0.00013698,2]
[346533281,1735050429673,-500.0,0.00013698,2]
[346533282,1735050429695,-500.0,0.00013698,2]
[346533283,1735050429718,-500.0,0.00013698,2]
[346533284,1735050429740,-500.0,0.00013698,2]
[346533285,1735050429763,-500.0,0.00013698,2]
[346533286,1735050429784,-500.0,0.00013698,2]
[346533287,1735050429807,-500.0,0.00013698,2]
[346533288,1735050429830,-1003.04,0.00013698,2]
[346533289,1735050429852,-500.0,0.00013698,2]
[346533290,1735050429874,-502.13217272,0.00013698,2]
[346533291,1735050429895,-502.26533478,0.00013698,2]
[346533292,1735050429917,-500.0,0.00013698,2]
[346533293,1735050429939,-500.0,0.00013698,2]
[346533294,1735050429962,-500.0,0.00013698,2]
[346533295,1735050429983,-222.60795528,0.00013698,2]
[346533296,1735050430003,-500.0,0.00013698,2]
[346533297,1735050430024,-500.0,0.00013698,2]
[346533298,1735050430045,-500.0,0.00013698,2]
[346533299,1735050430069,-311.9836919,0.00013698,2]
[346533300,1735050430090,-500.0,0.00013698,2]
[346533301,1735050430113,-1028.51,0.00013698,2]
[346533302,1735050430135,-941.61,0.00013698,2]
[346533303,1735050430156,-512.58556164,0.00013698,2]
[346533304,1735050430178,-500.0,0.00013698,2]
[346533305,1735050430199,-500.0,0.00013698,2]
[346533306,1735050430220,-500.0,0.00013698,2]
[346533307,1735050430241,-500.0,0.00013698,2]
[346533308,1735050430263,-524.58,0.00013698,2]
[346533309,1735050430288,-500.0,0.00013698,2]
[346533310,1735050430313,-1895.67,0.00013698,2]
[346533311,1735050430334,-500.0,0.00013698,2]
[346533312,1735050430360,-500.0,0.00013698,2]
[346533313,1735050430381,-500.0,0.00013698,2]
[346533314,1735050430402,-500.0,0.00013698,2]
[346533315,1735050430423,-500.0,0.00013698,2]
[346533316,1735050430444,-500.0,0.00013698,2]
[346533317,1735050430466,-400.57267527,0.00013698,2]
[346533318,1735050430488,-500.0,0.00013698,2]
[346533319,1735050430509,-500.0,0.00013698,2]
[346533320,1735050430530,-500.0,0.00013698,2]
[346533321,1735050430559,-5004.88,0.00013698,2]
[346533322,1735050430581,-500.0,0.00013698,2]
[346533323,1735050430602,-421.88416398,0.00013698,2]
[346533324,1735050430853,-201.13947947,0.00013698,2]
[346533325,1735050430874,-544.75581202,0.00013698,2]
[346533326,1735050430895,-2377.24,0.00013698,2]
[346533327,1735050430916,-500.0,0.00013698,2]
[346533328,1735050430937,-500.0,0.00013698,2]
[346533329,1735050430959,-500.0,0.00013698,2]
[346533330,1735050430979,-500.0,0.00013698,2]
[346533331,1735050431000,-500.0,0.00013698,2]
[346533332,1735050431022,-535.74,0.00013698,2]
[346533333,1735050431044,-500.0,0.00013698,2]
[346533334,1735050431070,-501.9639455,0.00013698,2]
[346533335,1735050431091,-6517.31,0.00013698,2]
[346533336,1735050431113,-500.0,0.00013698,2]
[346533337,1735050431284,-500.0,0.00013698,2]
[346533338,1735050431311,-500.0,0.00013698,2]
[346533339,1735050431335,-500.0,0.00013698,2]
[346533340,1735050431358,-500.0,0.00013698,2]
[346533341,1735050431378,-500.0,0.00013698,2]
[346533342,1735050431400,-502.72,0.00013698,2]
[346533343,1735050431421,-500.0,0.00013698,2]
[346533344,1735050431443,-501.62925538,0.00013698,2]
[346533345,1735050431464,-500.0,0.00013698,2]
[346533346,1735050431485,-723.72,0.00013698,2]
[346533347,1735050431507,-565.67,0.00013698,2]
[346533348,1735050431528,-161.35503863,0.00013698,2]
[346533349,1735050434098,-4598.63305328,0.00013561,2]
[346533350,1735050434123,-341.30528011,0.00013698,2]
[346533351,1735050434146,-963.91,0.00013698,2]
[346533352,1735050434169,-636.61,0.00013698,2]
[346533353,1735050434193,-2688.02,0.00013698,2]
[346533354,1735050434216,-3543.83,0.00013698,2]
[346533355,1735050434238,-511.92,0.00013698,4]
[346533356,1735050434261,-500.0,0.00013698,2]
[346533357,1735050434287,-500.0,0.00013698,2]
[346533358,1735050434311,-500.0,0.00013698,2]
[346533359,1735050434333,-444.47694484,0.00013698,2]
[346533360,1735050434359,-500.0,0.00013698,2]
[346533361,1735050434381,-500.0,0.00013698,2]
[346533362,1735050434404,-502.57760747,0.00013698,2]
[346533363,1735050434426,-500.0,0.00013698,2]
[346533364,1735050434448,-2011.63,0.00013698,2]
[346533365,1735050434470,-500.0,0.00013698,2]
[346533366,1735050434491,-500.0,0.00013698,2]
[346533367,1735050434513,-500.0,0.00013698,2]
[346533368,1735050434536,-500.0,0.00013698,2]
[346533369,1735050434565,-601.42,0.00013698,2]
[346533370,1735050434588,-2248.92,0.00013698,2]
[346533371,1735050434611,-500.0,0.00013698,2]
[346533372,1735050434633,-1202.43,0.00013698,2]
[346533373,1735050434654,-321.5110777,0.00013698,2]
[346533374,1735050434676,-500.0,0.00013698,2]
[346533375,1735050434697,-501.79739297,0.00013698,2]
[346533376,1735050434718,-500.0,0.00013698,2]
[346533377,1735050434741,-500.0,0.00013698,2]
[346533378,1735050434763,-500.0,0.00013698,2]
[346533379,1735050434786,-500.0,0.00013698,2]
[346533380,1735050434809,-1394.8,0.00013698,2]
[346533381,1735050434832,-500.0,0.00013698,2]
[346533382,1735050434855,-2007.93,0.00013698,2]
[346533383,1735050434877,-586.06,0.00013698,2]
[346533384,1735050434900,-2328.0,0.00013698,2]
[346533385,1735050434923,-1348.37,0.00013698,2]
[346533386,1735050434945,-595.40184192,0.00013698,2]
[346533387,1735050434967,-500.0,0.00013698,2]
[346533388,1735050434988,-501.97564801,0.00013698,2]
[346533389,1735050435009,-2464.65,0.00013698,2]
[346533390,1735050435031,-500.0,0.00013698,2]
[346533391,1735050435053,-500.0,0.00013698,2]
[346533392,1735050435075,-500.0,0.00013698,2]
[346533393,1735050435099,-1983.22,0.00013698,2]
[346533394,1735050435121,-706.26,0.00013698,2]
[346533395,1735050435144,-634.06307302,0.00013698,2]
[346533396,1735050435166,-500.0,0.00013698,2]
[346533397,1735050435187,-500.0,0.00013698,2]
[346533398,1735050435209,-500.0,0.00013698,2]
[346533399,1735050435230,-500.0,0.00013698,2]
[346533400,1735050435252,-531.45,0.00013698,2]
[346533401,1735050435277,-1061.27,0.00013698,2]
[346533402,1735050435299,-500.0,0.00013698,2]
[346533403,1735050435323,-948.58,0.00013698,2]
[346533404,1735050435345,-500.0,0.00013698,2]
[346533405,1735050435367,-564.13,0.00013698,2]
[346533406,1735050435390,-500.0,0.00013698,2]
[346533407,1735050435411,-665.81,0.00013698,2]
[346533408,1735050435433,-502.34777199,0.00013698,2]
[346533409,1735050435455,-1455.1,0.00013698,2]
[346533410,1735050435478,-500.0,0.00013698,2]
[346533411,1735050435499,-500.0,0.00013698,2]
[346533412,1735050435520,-500.0,0.00013698,2]
[346533413,1735050435680,-500.0,0.00013698,2]
[346533414,1735050435703,-500.0,0.00013698,2]
[346533415,1735050435728,-500.0,0.00013698,2]
[346533416,1735050435750,-464.79531377,0.00013698,2]
[346533417,1735050435772,-500.0,0.00013698,2]
[346533418,1735050435795,-500.0,0.00013698,2]
[346533419,1735050435817,-1389.9,0.00013698,2]
[346533420,1735050435839,-500.0,0.00013698,2]
[346533421,1735050435863,-1642.94,0.00013698,2]
[346533422,1735050435886,-4574.71,0.00013698,2]
[346533423,1735050435910,-500.0,0.00013698,2]
[346533424,1735050435934,-500.0,0.00013698,2]
[346533425,1735050435956,-500.0,0.00013698,2]
[346533426,1735050435980,-500.0,0.00013698,2]
[346533427,1735050436004,-1825.82,0.00013698,2]
[346533428,1735050436028,-2060.63,0.00013698,2]
[346533429,1735050436052,-792.26,0.00013698,2]
[346533430,1735050436074,-567.10143198,0.00013698,2]
[346533431,1735050436097,-1235.07,0.00013698,2]
[346533432,1735050436122,-500.0,0.00013698,2]
[346533433,1735050436146,-22438.04,0.00013698,2]
[346533434,1735050436169,-4143.58,0.00013698,2]
[346533435,1735050436191,-500.0,0.00013698,2]
[346533436,1735050436214,-500.0,0.00013698,2]
[346533437,1735050436236,-561.44,0.00013698,2]
[346533438,1735050436258,-500.0,0.00013698,2]
[346533439,1735050436284,-500.0,0.00013698,2]
[346533440,1735050436307,-500.0,0.00013698,2]
[346533441,1735050436331,-500.0,0.00013698,2]
[346533442,1735050436354,-1011.64,0.00013698,2]
[346533443,1735050436376,-581.66061949,0.00013698,2]
[346533444,1735050436398,-500.0,0.00013698,2]
[346533445,1735050436420,-984.63,0.00013698,2]
[346533446,1735050436443,-500.0,0.00013698,2]
[346533447,1735050436465,-500.0,0.00013698,2]
[346533448,1735050436489,-199.69,0.00013698,2]
[346533449,1735050436511,-500.0,0.00013698,2]
[346533450,1735050436533,-500.0,0.00013698,2]
[346533451,1735050436555,-500.0,0.00013698,2]
[346533452,1735050436578,-684.96,0.00013698,2]
[346533453,1735050436601,-500.0,0.00013698,2]
[346533454,1735050436623,-566.91,0.00013698,2]
[346533455,1735050436646,-649.62,0.00013698,2]
[346533456,1735050436669,-555.79,0.00013698,2]
[346533457,1735050436691,-500.0,0.00013698,2]
[346533458,1735050436716,-500.0,0.00013698,2]
[346533459,1735050436738,-592.97,0.00013698,2]
[346533460,1735050436760,-500.0,0.00013698,2]
[346533461,1735050436782,-586.43,0.00013698,2]
[346533462,1735050436805,-500.0,0.00013698,2]
[346533463,1735050436827,-506.12473125,0.00013698,2]
[346533464,1735050436851,-8984.32,0.00013698,2]
[346533465,1735050436872,-500.0,0.00013698,2]
[346533466,1735050436895,-1169.39,0.00013698,2]
[346533467,1735050436919,-19191.13,0.00013698,2]
[346533468,1735050436942,-500.0,0.00013698,2]
[346533469,1735050436963,-500.0,0.00013698,2]
[346533470,1735050436986,-3548.6,0.00013698,2]
[346533471,1735050437008,-500.0,0.00013698,2]
[346533472,1735050437028,-500.0,0.00013698,2]
[346533473,1735050437050,-500.0,0.00013698,2]
[346533474,1735050437087,-500.0,0.00013698,2]
[346533475,1735050437113,-500.0,0.00013698,2]
[346533476,1735050437133,-3951.48,0.00013698,2]
[346533477,1735050437154,-500.0,0.00013698,2]
[346533478,1735050437175,-1699.57,0.00013698,2]
[346533479,1735050437196,-500.0,0.00013698,2]
[346533480,1735050437218,-500.0,0.00013698,2]
[346533481,1735050437240,-1057.8,0.00013698,2]
[346533482,1735050437263,-3100.18,0.00013698,2]
[346533483,1735050437288,-3157.35,0.00013698,2]
[346533484,1735050437313,-717.75,0.00013698,2]
[346533485,1735050437334,-500.0,0.00013698,2]
[346533486,1735050437361,-500.0,0.00013698,2]
[346533487,1735050437382,-500.0,0.00013698,2]
[346533488,1735050437403,-6803.62,0.00013698,2]
[346533489,1735050437424,-500.0,0.00013698,2]
[346533490,1735050437446,-185.71507622,0.00013698,2]
[346533491,1735050437466,-500.0,0.00013698,2]
[346533492,1735050437487,-500.0,0.00013698,2]
[346533493,1735050437509,-1076.77,0.00013698,2]
[346533494,1735050437531,-500.0,0.00013698,2]
[346533495,1735050437553,-500.0,0.00013698,2]
[346533496,1735050437576,-12721.98,0.00013698,2]
[346533497,1735050437599,-500.0,0.00013698,2]
[346533498,1735050437623,-1284.08,0.00013698,2]
[346533499,1735050437650,-500.0,0.00013698,2]
[346533500,1735050437676,-1598.13,0.00013698,2]
[346533501,1735050437701,-500.0,0.00013698,2]
[346533502,1735050437727,-10828.51,0.00013698,2]
[346533503,1735050437751,-1800.25,0.00013698,2]
[346533504,1735050437776,-87444.97,0.00013698,2]
[346533505,1735050437801,-500.0,0.00013698,2]
[346533506,1735050437825,-2000.0,0.00013698,2]